bitfinex/quotes_SOLUSD_20240821
["timestamp","ask_amount","ask_price","bid_price","bid_amount"]
[1724216428571,16.51,143.13,143.09,45.0]
[1724216429151,16.51,143.13,143.1,1.39741756]
[1724216430149,16.51,143.13,143.09,45.0]
[1724216432875,16.51,143.13,143.09,46.397423]
[1724216433376,16.51,143.13,143.09,45.0]
[1724216448278,17.51,143.13,143.09,45.0]
[1724216449478,17.51,143.13,143.08,20.0]
[1724216449668,17.51,143.13,143.06,20.0]
[1724216449875,17.51,143.13,143.07,45.0]
[1724216450073,15.5786,143.11,143.06,45.0]
[1724216450304,7.5581,143.1,143.03,13.17]
[1724216450800,6.5581,143.1,143.05,13.17]
[1724216451100,15.5786,143.11,143.05,13.17]
[1724216451472,15.5786,143.11,143.07,13.17]
[1724216451680,15.5786,143.11,143.08,45.0]
[1724216455294,15.5786,143.11,143.09,1.39750525]
[1724216456292,6.5581,143.14,143.09,13.17]
[1724216456497,15.1774,143.14,143.1,46.39731936]
[1724216456689,15.1774,143.14,143.11,1.39729837]
[1724216457002,15.1774,143.14,143.1,45.0]
[1724216458700,15.1774,143.14,143.11,1.39729977]
[1724216460083,15.1774,143.14,143.1,45.0]
[1724216463215,0.851087,143.15,143.11,34.81789962]
[1724216463393,0.851087,143.15,143.12,45.0]
[1724216463710,0.851087,143.15,143.13,1.39705738]
[1724216464802,0.851087,143.15,143.12,45.0]
[1724216465114,0.851087,143.15,143.13,1.39705937]
[1724216465493,0.851087,143.15,143.12,45.0]
[1724216469115,0.851087,143.15,143.13,1.39718222]
[1724216469615,0.851087,143.15,143.13,1.39707243]
[1724216469820,0.851087,143.15,143.12,45.0]
[1724216471015,0.851087,143.15,143.13,1.39708874]
[1724216471217,0.851087,143.15,143.12,45.0]
[1724216471819,0.851087,143.15,143.13,1.39707075]
[1724216473202,0.851087,143.15,143.13,21.39707075]
[1724216473516,0.851087,143.15,143.14,45.0]
[1724216473916,0.851087,143.15,143.14,46.39698322]
[1724216474300,0.851087,143.15,143.14,45.0]
[1724216474702,0.851087,143.15,143.14,46.39696468]
[1724216476904,0.851087,143.15,143.14,45.0]
[1724216477513,0.851087,143.15,143.14,46.3969654]
[1724216477826,0.851087,143.15,143.14,45.0]
[1724216481703,0.851087,143.15,143.14,46.3969671]
[1724216482021,0.851087,143.15,143.14,45.0]
[1724216491542,0.851087,143.15,143.14,46.39704945]
[1724216493033,0.851087,143.15,143.14,79.56704945]
[1724216494139,0.851087,143.15,143.14,79.81802945]
[1724216494917,0.851087,143.15,143.14,78.42098]
[1724216495918,0.851087,143.15,143.14,65.12549]
[1724216496121,0.851087,143.15,143.14,20.0]
[1724216497620,0.851087,143.15,143.14,66.39697248]
[1724216505226,0.851087,143.15,143.14,66.64795248]
[1724216505929,0.851087,143.15,143.14,65.25098]
[1724216506929,0.851087,143.15,143.14,66.64781921]
[1724216510744,0.851087,143.15,143.14,66.64781802]
[1724216514227,0.851087,143.15,143.14,65.25098]
[1724216519157,0.851087,143.15,143.14,66.6478202]
[1724216522054,0.851087,143.15,143.14,65.25098]
[1724216522231,0.851087,143.15,143.14,66.64767489]
[1724216522960,16.3218,143.21,143.14,135.85569009]
[1724216523162,16.3218,143.21,143.2,13.17]
[1724216523368,16.3218,143.21,143.2,78.17]
[1724216524154,16.4377,143.25,143.2,78.17]
[1724216524480,16.4377,143.25,143.21,45.0]
[1724216530177,1.0,143.24,143.17,13.17]
[1724216530360,1.0,143.24,143.18,20.0]
[1724216531359,16.4377,143.25,143.18,20.0]
[1724216531685,16.4377,143.25,143.19,45.0]
[1724216531866,1.0,143.24,143.19,45.0]
[1724216532874,16.4377,143.25,143.19,45.0]
[1724216534267,6.3143,143.22,143.11,12.7211]
[1724216534578,16.1038,143.2,143.13,13.17]
[1724216534787,1.0,143.19,143.13,13.17]
[1724216535160,16.1038,143.2,143.13,13.17]
[1724216535360,16.1038,143.2,143.14,1.39693357]
[1724216535568,16.1038,143.2,143.17,13.17]
[1724216536189,16.1038,143.2,143.18,45.0]
[1724216539688,13.17,143.27,143.18,45.0]
[1724216539689,15.8514,143.23,143.18,45.0]
[1724216540061,15.8514,143.23,143.19,14.56658078]
[1724216540263,15.8514,143.23,143.2,45.0]
[1724216546489,15.8514,143.23,143.2,46.39637168]
[1724216546690,15.8514,143.23,143.2,45.0]
[1724216547064,15.8514,143.23,143.19,45.0]
[1724216547487,15.8514,143.23,143.18,45.0]
[1724216547790,15.8514,143.23,143.19,20.0]
[1724216547975,15.8514,143.23,143.2,45.0]
[1724216550582,15.8514,143.23,143.19,20.0]
[1724216550583,1.0,143.22,143.19,20.0]
[1724216550799,1.0,143.22,143.18,20.0]
[1724216550997,1.0,143.22,143.15,13.17]
[1724216551366,1.0,143.22,143.14,0.12549]
[1724216551589,1.0,143.22,143.13,0.12549]
[1724216551775,1.0,143.22,143.15,13.17]
[1724216552097,1.0,143.22,143.16,0.12549]
[1724216552287,1.0,143.22,143.16,45.12549]
[1724216552592,1.0,143.22,143.17,20.0]
[1724216552798,1.0,143.22,143.18,45.0]
[1724216554982,15.8514,143.23,143.18,58.17]
[1724216555183,15.8514,143.23,143.19,20.0]
[1724216555596,15.8514,143.23,143.2,45.0]
[1724216561597,15.8514,143.23,143.2,58.17]
[1724216561789,15.8514,143.23,143.2,59.56645426]
[1724216561974,15.8514,143.23,143.2,59.56641017]
[1724216562697,15.8514,143.23,143.21,1.3963999]
[1724216563206,15.8514,143.23,143.2,58.17]
[1724216565375,15.8514,143.23,143.21,21.39636716]
[1724216565600,15.8514,143.23,143.22,45.0]
[1724216579296,6.0145,143.25,143.22,45.0]
[1724216579624,15.2703,143.26,143.22,45.0]
[1724216581517,1.0,143.25,143.22,45.0]
[1724216585923,15.2703,143.26,143.22,45.0]
[1724216587128,1.0,143.25,143.22,45.0]
[1724216588016,15.2703,143.26,143.22,45.0]
[1724216588215,15.2703,143.26,143.21,20.0]
[1724216588422,15.2703,143.26,143.2,20.0]
[1724216589628,15.2703,143.26,143.21,45.0]
[1724216594745,1.0,143.25,143.21,45.0]
[1724216595419,14.17,143.25,143.16,13.17]
[1724216595840,21.7446,143.24,143.16,13.17]
[1724216596211,1.0,143.23,143.16,13.17]
[1724216596942,21.7446,143.24,143.16,13.17]
[1724216597141,21.7446,143.24,143.17,20.0]
[1724216597541,21.7446,143.24,143.18,45.0]
[1724216598624,21.7446,143.24,143.18,59.56671101]
[1724216598848,21.7446,143.24,143.18,58.17]
[1724216599050,1.0,143.23,143.18,58.17]
[1724216599761,21.7446,143.24,143.18,45.0]
[1724216600847,1.0,143.23,143.18,45.0]
[1724216603170,21.7446,143.24,143.18,45.0]
[1724216607164,21.7446,143.24,143.18,46.39660077]
[1724216607345,21.7446,143.24,143.19,33.17]
[1724216607544,21.7446,143.24,143.2,46.39643011]
[1724216608154,21.7446,143.24,143.21,1.39642427]
[1724216608347,21.7446,143.24,143.2,46.39640791]
[1724216608548,21.7446,143.24,143.2,45.0]
[1724216621491,1.0,143.23,143.17,20.0]
[1724216621797,1.0,143.23,143.1,8.09980146]
[1724216621798,1.0,143.23,143.18,65.0]
[1724216622082,1.0,143.23,143.18,20.0]
[1724216622282,21.7446,143.24,143.18,20.0]
[1724216622494,21.7446,143.24,143.18,13.17]
[1724216622673,21.7446,143.24,143.19,20.0]
[1724216623368,21.7446,143.24,143.2,45.0]
[1724216624975,1.0,143.23,143.19,20.0]
[1724216625184,1.0,143.23,143.16,13.17]
[1724216625383,1.0,143.23,143.17,20.0]
[1724216625682,21.7446,143.24,143.17,20.0]
[1724216626495,21.7446,143.24,143.18,45.0]
[1724216626789,21.7446,143.24,143.19,20.0]
[1724216632586,21.7446,143.24,143.19,21.39660236]
[1724216633482,21.7446,143.24,143.19,20.0]
[1724216635395,1.0,143.23,143.19,20.0]
[1724216635803,21.7446,143.24,143.19,20.0]
[1724216637181,1.0,143.23,143.19,20.0]
[1724216638401,21.7446,143.24,143.19,20.0]
[1724216638776,1.0,143.23,143.19,20.0]
[1724216642316,21.7446,143.24,143.19,20.0]
[1724216643916,1.0,143.23,143.19,20.0]
[1724216644791,1.0,143.23,143.18,45.0]
[1724216645106,1.0,143.23,143.17,45.0]
[1724216645300,1.0,143.23,143.16,13.17]
[1724216646088,1.0,143.23,143.17,20.0]
[1724216646407,21.7446,143.24,143.17,20.0]
[1724216646408,16.5969,143.22,143.17,20.0]
[1724216652221,16.5969,143.22,143.18,59.5667396]
[1724216652526,16.5969,143.22,143.18,58.17]
[1724216663623,16.5969,143.22,143.18,45.0]
[1724216663830,1.0,143.21,143.17,20.0]
[1724216664009,1.0,143.21,143.16,20.0]
[1724216664195,1.0,143.21,143.17,45.0]
[1724216664618,1.0,143.2,143.16,20.0]
[1724216664923,1.0,143.2,143.12,13.17]
[1724216664924,15.2324,143.19,143.12,13.17]
[1724216665102,1.0,143.18,143.12,13.17]
[1724216666026,1.0,143.18,143.1,12.71497788]
[1724216666213,1.0,143.17,143.1,13.17]
[1724216667802,1.0,143.17,143.11,20.0]
[1724216668112,15.6277,143.16,143.11,20.0]
[1724216668308,1.0,143.15,143.11,20.0]
[1724216668821,1.0,143.15,143.12,45.0]
[1724216669123,15.6277,143.16,143.12,45.0]
[1724216669124,16.6277,143.16,143.12,45.0]
[1724216670127,15.6277,143.16,143.12,45.0]
[1724216674324,1.0,143.15,143.12,45.0]
[1724216675442,1.0,143.15,143.11,20.0]
[1724216675741,1.0,143.15,143.08,13.17]
[1724216675930,1.0,143.15,143.09,45.0]
[1724216676130,1.0,143.15,143.08,13.17]
[1724216676438,21.0794,143.14,143.08,13.17]
[1724216676641,1.0,143.13,143.08,13.17]
[1724216677619,1.0,143.13,143.09,45.0]
[1724216678011,1.0,143.13,143.05,13.17]
[1724216678226,1.0,143.13,143.03,10.30365178]
[1724216678227,13.17,143.11,143.03,13.17]
[1724216678538,1.0,143.1,143.03,13.17]
[1724216679614,1.0,143.1,143.04,45.0]
[1724216679942,16.6634,143.12,143.04,45.0]
[1724216680426,16.6634,143.12,143.03,13.17]
[1724216680634,16.6634,143.12,143.04,20.0]
[1724216683118,1.0,143.11,143.04,20.0]
[1724216684022,22.3641,143.1,143.03,13.17]
[1724216684222,1.0,143.09,143.04,45.0]
[1724216686128,22.3641,143.1,143.04,45.0]
[1724216688228,22.3641,143.1,143.05,14.56806445]
[1724216688417,22.3641,143.1,143.05,13.17]
[1724216688620,22.3641,143.1,143.06,45.0]
[1724216690639,16.1407,143.1,143.06,45.0]
[1724216690821,16.1407,143.1,143.08,13.17]
[1724216693422,16.1407,143.1,143.06,58.17]
[1724216694651,16.1407,143.1,143.07,1.39776716]
[1724216695340,16.1407,143.1,143.06,58.17]
[1724216697345,16.1407,143.1,143.07,1.39768104]
[1724216697530,16.1407,143.1,143.08,13.17]
[1724216697852,15.4544,143.13,143.09,46.39756256]
[1724216698064,15.4544,143.13,143.1,13.17]
[1724216698229,15.4544,143.13,143.1,14.56740336]
[1724216699529,15.4544,143.13,143.1,13.17]
[1724216700034,15.4544,143.13,143.09,45.0]
[1724216700751,15.4544,143.13,143.08,13.17]
[1724216701448,15.4544,143.13,143.03,6.46352646]
[1724216701626,15.4544,143.13,143.08,13.17]
[1724216705833,15.4544,143.13,143.09,46.39758552]
[1724216706845,15.4544,143.13,143.09,45.0]
[1724216714670,15.4544,143.13,143.08,45.0]
[1724216718175,15.4544,143.13,143.08,46.39758546]
[1724216718759,15.4544,143.13,143.09,13.17]
[1724216719355,15.4544,143.13,143.09,14.56758529]
[1724216719576,15.4544,143.13,143.11,13.17]
[1724216721284,15.4544,143.13,143.09,13.17]
[1724216721578,15.4544,143.13,143.1,1.16182649]
[1724216721755,15.4544,143.13,143.1,46.16182649]
[1724216722153,15.4544,143.13,143.1,45.0]
[1724216723152,15.4544,143.13,143.11,34.56731284]
[1724216723355,15.4544,143.13,143.12,45.0]
[1724216724373,15.4544,143.13,143.12,46.39726643]
[1724216724582,15.2873,143.17,143.12,46.39726643]
[1724216729290,15.2873,143.17,143.12,45.0]
[1724216730056,15.2873,143.17,143.12,46.39720267]
[1724216731958,15.2873,143.17,143.13,14.56719947]
[1724216732154,16.3074,143.2,143.15,13.17]
[1724216732359,16.3074,143.2,143.15,14.56692511]
[1724216732586,16.3074,143.2,143.15,13.17]
[1724216734680,16.3074,143.2,143.15,14.56692531]
[1724216736463,16.3074,143.2,143.16,45.0]
[1724216736766,16.3074,143.2,143.17,13.17]
[1724216737807,16.3074,143.2,143.17,14.56678007]
[1724216738397,16.3074,143.2,143.16,45.0]
[1724216741288,16.3074,143.2,143.16,46.39681546]
[1724216743978,16.5215,143.24,143.19,13.17]
[1724216744504,16.5215,143.24,143.16,45.0]
[1724216744505,16.5215,143.24,143.17,13.17]
[1724216745067,1.0,143.23,143.17,13.17]
[1724216746594,16.5215,143.24,143.17,13.17]
[1724216752810,16.5215,143.24,143.19,13.17]
[1724216754814,1.0,143.23,143.19,13.17]
[1724216755698,16.5215,143.24,143.19,13.17]
[1724216759189,15.5024,143.28,143.21,13.17]
[1724216760307,15.5024,143.28,143.22,1.39630647]
[1724216760509,15.5024,143.28,143.21,13.17]
[1724216766087,1.0,143.27,143.2,13.17]
[1724216766290,1.0,143.26,143.21,45.0]
[1724216767182,28.6724,143.28,143.21,45.0]
[1724216767583,28.6724,143.28,143.21,46.39629535]
[1724216768206,28.6724,143.28,143.21,45.0]
[1724216769997,15.5024,143.28,143.21,45.0]
[1724216770391,1.0,143.27,143.21,45.0]
[1724216771998,15.5024,143.28,143.21,45.0]
[1724216775227,1.0,143.27,143.21,45.0]
[1724216775519,15.5024,143.28,143.21,45.0]
[1724216777895,28.6724,143.28,143.21,45.0]
[1724216778314,1.0,143.27,143.21,45.0]
[1724216779000,1.0,143.26,143.21,45.0]
[1724216780087,1.0,143.27,143.21,45.0]
[1724216784397,14.17,143.26,143.16,6.1758]
[1724216784597,14.17,143.26,143.17,78.42098]
[1724216787219,13.17,143.26,143.17,78.42098]
[1724216787920,35.5024,143.28,143.19,13.17]
[1724216788296,77.21643864,143.28,143.19,13.17]
[1724216788495,35.5024,143.28,143.19,13.17]
[1724216789202,1.0,143.27,143.19,13.17]
[1724216789415,1.0,143.26,143.19,13.17]
[1724216790009,1.0,143.26,143.17,78.29549]
[1724216791024,1.0,143.26,143.17,78.17]
[1724216791226,21.0,143.26,143.17,20.0]
[1724216791430,15.0829,143.25,143.17,33.17]
[1724216791797,1.0,143.24,143.17,33.17]
[1724216792125,1.0,143.23,143.17,33.17]
[1724216794300,28.2529,143.25,143.17,33.17]
[1724216795001,15.0829,143.25,143.18,1.39671224]
[1724216795202,15.0829,143.25,143.18,1.39665051]
[1724216795506,15.0829,143.25,143.18,46.39665051]
[1724216797230,15.0829,143.25,143.18,45.0]
[1724216800435,21.0,143.24,143.17,20.0]
[1724216800623,28.2529,143.25,143.15,13.17]
[1724216800932,28.2529,143.25,143.17,13.17]
[1724216801539,28.2529,143.25,143.18,1.39672203]
[1724216801837,28.2529,143.25,143.17,13.17]
[1724216802250,69.97252133,143.25,143.17,13.17]
[1724216802412,28.2529,143.25,143.17,13.17]
[1724216803217,69.97252133,143.25,143.17,13.17]
[1724216804217,28.2529,143.25,143.17,13.17]
[1724216805218,69.97252133,143.25,143.17,13.17]
[1724216805543,28.2529,143.25,143.17,13.17]
[1724216808645,1.0,143.24,143.17,13.17]
[1724216809131,1.0,143.23,143.17,13.17]
[1724216810223,28.2529,143.25,143.17,13.17]
[1724216810624,1.0,143.24,143.17,13.17]
[1724216811324,28.2529,143.25,143.17,13.17]
[1724216813528,1.0,143.24,143.17,13.17]
[1724216813725,28.2529,143.25,143.17,13.17]
[1724216814560,15.0829,143.25,143.17,13.17]
[1724216819139,15.9812,143.23,143.14,20.0]
[1724216819456,7.6013,143.22,143.15,58.17]
[1724216820251,7.6013,143.22,143.15,13.17]
[1724216820754,16.5855,143.21,143.1,6.5339]
[1724216821058,1.0,143.2,143.12,13.17]
[1724216821736,1.0,143.2,143.13,45.0]
[1724216822247,16.5855,143.21,143.14,13.17]
[1724216823728,16.5855,143.21,143.16,13.17]
[1724216823926,16.5855,143.21,143.17,1.39677247]
[1724216827678,16.5855,143.21,143.15,45.0]
[1724216827679,17.5855,143.21,143.15,45.0]
[1724216827955,1.0,143.2,143.15,45.0]
[1724216828747,16.5855,143.21,143.15,45.0]
[1724216829133,1.0,143.2,143.15,45.0]
[1724216831063,14.17,143.2,143.12,13.17]
[1724216831242,16.6505,143.19,143.1,13.17]
[1724216831441,7.5701,143.18,143.1,13.17]
[1724216831645,1.0,143.17,143.1,13.17]
[1724216832537,1.0,143.17,143.11,45.0]
[1724216833137,6.5701,143.18,143.11,45.0]
[1724216839661,7.5701,143.18,143.11,45.0]
[1724216840238,6.5701,143.18,143.11,45.0]
[1724216843769,15.9715,143.17,143.11,45.0]
[1724216844069,16.9715,143.17,143.11,45.0]
[1724216844276,16.9715,143.17,143.05,7.30740164]
[1724216844277,15.9715,143.15,143.05,7.30740164]
[1724216844476,1.0,143.14,143.07,13.17]
[1724216845843,15.9715,143.15,143.08,45.0]
[1724216846780,15.9715,143.15,143.09,14.56741142]
[1724216846983,15.9715,143.15,143.1,45.0]
[1724216847188,15.9715,143.15,143.11,1.39735085]
[1724216849554,15.9715,143.15,143.1,45.0]
[1724216849854,15.9715,143.15,143.1,46.39733985]
[1724216850867,15.9715,143.15,143.1,45.0]
[1724216853785,15.9715,143.15,143.05,1.39735122]
[1724216853960,1.0,143.14,143.07,13.17]
[1724216854279,7.6213,143.14,143.08,20.0]
[1724216854681,6.6213,143.14,143.06,13.17]
[1724216854882,6.6213,143.14,143.07,20.0]
[1724216855896,6.6213,143.14,143.08,45.0]
[1724216856665,7.6213,143.14,143.08,45.0]
[1724216859285,15.4623,143.13,143.07,20.0]
[1724216859464,1.0,143.12,143.07,20.0]
[1724216859859,14.17,143.12,143.0,18.8334]
[1724216860077,14.17,143.12,143.04,13.17]
[1724216860278,14.17,143.12,143.05,45.0]
[1724216860865,16.5252,143.11,143.05,45.0]
[1724216861066,1.0,143.1,143.05,45.0]
[1724216863693,16.5252,143.11,143.05,45.0]
[1724216864099,1.0,143.1,143.05,45.0]
[1724216865596,7.2316,143.1,143.02,13.17]
[1724216865794,7.2316,143.1,143.03,65.0]
[1724216866097,15.8653,143.08,143.01,13.17]
[1724216866282,1.0,143.07,143.01,13.17]
[1724216867579,1.0,143.07,143.0,13.17]
[1724216867783,1.0,143.07,143.01,65.0]
[1724216868399,22.1089,143.06,142.95,6.46352646]
[1724216868583,1.0,143.05,142.98,13.17]
[1724216868904,15.9348,143.04,142.95,6.46352646]
[1724216869210,15.9348,143.04,142.97,13.17]
[1724216869575,15.9348,143.04,142.98,0.12549]
[1724216869778,15.9348,143.04,142.98,45.12549]
[1724216870083,15.9348,143.04,142.98,45.0]
[1724216870295,15.9348,143.04,142.99,20.0]
[1724216872787,15.9348,143.04,142.98,45.0]
[1724216885907,15.9348,143.04,142.99,1.39839823]
[1724216888993,15.9348,143.04,143.0,1.39839792]
[1724216889194,15.9348,143.04,143.0,46.39839792]
[1724216891825,15.9348,143.04,143.0,45.0]
[1724216892314,15.9348,143.04,143.01,1.39819362]
[1724216892616,15.9348,143.04,143.0,45.0]
[1724216892995,15.9348,143.04,143.01,1.39818781]
[1724216893389,15.9348,143.04,143.0,45.0]
[1724216893919,15.9348,143.04,143.01,1.39825882]
[1724216895888,15.9348,143.04,143.0,45.0]
[1724216896387,15.9348,143.04,143.01,1.39826]
[1724216897793,15.9348,143.04,143.0,45.0]
[1724216899895,15.9348,143.04,143.01,1.39825829]
[1724216903795,15.9348,143.04,143.02,1.3981661]
[1724216903994,15.9348,143.04,143.02,46.3981661]
[1724216905018,15.9348,143.04,143.03,1.3981413]
[1724216908624,16.1006,143.07,143.03,1.3981413]
[1724216908799,16.1006,143.07,143.03,14.5681413]
[1724216909001,16.1006,143.07,143.04,45.0]
[1724216909321,16.1006,143.07,143.04,46.39796959]
[1724216909500,16.1006,143.07,143.04,45.0]
[1724216915318,16.1006,143.07,143.01,13.17]
[1724216915515,16.1006,143.07,143.02,65.0]
[1724216924329,16.1006,143.07,142.95,25.79362646]
[1724216924536,16.1006,143.07,142.99,13.17]
[1724216924738,16.1006,143.07,143.0,20.0]
[1724216925709,16.1006,143.07,143.01,45.0]
[1724216927842,16.1006,143.07,143.0,45.0]
[1724216927843,1.0,143.06,143.0,45.0]
[1724216928420,29.2706,143.07,143.0,45.0]
[1724216930923,29.2706,143.07,143.01,1.39826167]
[1724216931644,1.0,143.06,143.0,45.0]
[1724216932662,29.2706,143.07,143.0,45.0]
[1724216935539,28.9987,143.05,142.95,6.46352646]
[1724216935742,1.0,143.04,142.96,13.17]
[1724216937067,1.0,143.04,142.97,45.0]
[1724216939444,28.9987,143.05,142.97,45.0]
[1724216941963,15.8287,143.05,142.98,14.56759542]
[1724216942169,15.8287,143.05,142.99,46.39842394]
[1724216944761,15.8287,143.05,142.99,45.0]
[1724216946150,15.8287,143.05,143.0,1.39829003]
[1724216947359,15.8287,143.05,142.99,45.0]
[1724216947563,15.8287,143.05,143.0,1.39829241]
[1724216949650,15.8287,143.05,142.99,45.0]
[1724216951951,15.8287,143.05,143.0,1.52300498]
[1724216952159,15.8287,143.05,142.99,45.0]
[1724216959154,15.8287,143.05,143.0,1.39829376]
[1724216959353,15.8287,143.05,143.0,14.56829376]
[1724216959551,15.8287,143.05,143.01,45.0]
[1724216959779,15.8287,143.05,143.02,1.39818588]
[1724216960582,15.8287,143.05,143.02,14.56818588]
[1724216960757,15.8287,143.05,143.03,45.12549]
[1724216961074,15.8287,143.05,143.04,1.39798602]
[1724216961764,15.8287,143.05,143.03,45.12549]
[1724216962848,15.8287,143.05,143.03,45.0]
[1724216967881,15.8287,143.05,143.04,1.39806564]
[1724216972890,15.8287,143.05,143.03,45.0]
[1724216981987,15.8287,143.05,143.0,13.17]
[1724216982284,15.8287,143.05,143.01,65.0]
[1724216982770,15.8287,143.05,143.02,1.39812355]
[1724216985769,15.8287,143.05,143.02,14.56812355]
[1724216985971,15.8287,143.05,143.03,45.0]
[1724216986270,15.8287,143.05,143.04,1.3980696]
[1724216986472,15.8287,143.05,143.03,45.0]
[1724216986774,15.8287,143.05,143.03,46.39807233]
[1724216992283,19.7958,143.1,143.03,46.39807233]
[1724216992284,15.1429,143.09,143.03,46.39807233]
[1724216992480,15.1429,143.09,143.04,13.29549]
[1724216992689,15.1429,143.09,143.05,46.3978132]
[1724216999587,15.1429,143.09,143.06,13.29549]
[1724216999804,15.1429,143.09,143.07,46.39765908]
[1724217000106,6.1647,143.13,143.08,1.39765979]
[1724217000107,22.2048,143.13,143.08,1.39765979]
[1724217001603,16.0401,143.13,143.08,14.56765979]
[1724217001781,16.0401,143.13,143.09,45.0]
[1724217001987,16.0401,143.13,143.1,1.39740737]
[1724217003918,16.0401,143.13,143.09,45.0]
[1724217004203,16.0401,143.13,143.06,13.29549]
[1724217004382,16.0401,143.13,143.07,66.39752284]
[1724217004587,16.0401,143.13,143.08,1.39749531]
[1724217008115,16.0401,143.13,143.08,14.56749531]
[1724217008285,16.0401,143.13,143.09,45.0]
[1724217008484,16.0401,143.13,143.1,1.39734071]
[1724217008784,16.0401,143.13,143.09,45.0]
[1724217009786,16.0401,143.13,143.1,1.39731008]
[1724217012514,16.0401,143.13,143.11,1.39727223]
[1724217013731,16.0401,143.13,143.09,45.0]
[1724217013902,16.0401,143.13,143.1,0.12549]
[1724217014107,16.0401,143.13,143.1,1.64825688]
[1724217014331,16.0401,143.13,143.1,14.81825688]
[1724217014496,16.0401,143.13,143.11,45.0]
[1724217014698,16.0401,143.13,143.12,1.39725542]
[1724217015232,0.0601471,143.16,143.12,1.39725542]
[1724217015420,0.0601471,143.16,143.12,14.56725542]
[1724217015618,0.0601471,143.16,143.13,45.0]
[1724217015924,0.0601471,143.16,143.11,45.0]
[1724217017307,1.0601471,143.16,143.11,45.0]
[1724217017809,14.2301471,143.16,143.11,45.0]
[1724217018002,14.2301471,143.16,143.08,13.17]
[1724217018225,14.2301471,143.16,143.09,65.25098]
[1724217019224,15.0827,143.15,143.1,1.39731887]
[1724217020540,15.0827,143.15,143.09,14.56736496]
[1724217020842,15.0827,143.15,143.1,45.0]
[1724217021016,15.0827,143.15,143.11,1.39731467]
[1724217023014,15.0827,143.15,143.1,45.0]
[1724217023214,15.0827,143.15,143.09,45.0]
[1724217023739,15.0827,143.15,143.09,46.39743402]
[1724217024114,15.0827,143.15,143.09,59.56743402]
[1724217026046,15.0827,143.15,143.09,58.17]
[1724217030428,15.0827,143.15,143.1,1.39731903]
[1724217030627,15.0827,143.15,143.11,1.39731658]
[1724217031048,15.0827,143.15,143.11,14.56731658]
[1724217031251,15.0827,143.15,143.12,45.0]
[1724217031465,15.0827,143.15,143.13,1.3971705]
[1724217034161,15.0827,143.15,143.12,45.0]
[1724217034859,15.0827,143.15,143.13,1.39712338]
[1724217036764,15.0827,143.15,143.14,1.39712314]
[1724217037069,0.0601471,143.16,143.14,46.39712314]
[1724217037235,0.0601471,143.16,143.15,1.39696452]
[1724217038943,0.0601471,143.16,143.14,45.0]
[1724217039137,0.0601471,143.16,143.13,13.17]
[1724217039338,0.0601471,143.16,143.08,26.51249]
[1724217039539,0.0601471,143.16,143.1,13.17]